[Event "XIII Mediterranean Championship 2023"]
[Site "Castell-Platja d Aro"]
[Date "2023.11.07"]
[Round "5.1"]
[White "Garcia Ramos, Daniel"]
[Black "Iermito, Sebastian"]
[Result "0-1"]
[ECO "C54"]
[WhiteElo "2455"]
[BlackElo "2521"]
[Annotator "RC"]
[PlyCount "86"]
[EventDate "2023.10.26"]
[EventType "swiss"]
[EventCountry "ESP"]
[SourceTitle "playchess.com"]
[Source "ChessBase"]
[SourceQuality "1"]
[TimeControl "5400+30"]

1. e4 {[%emt 0:00:12]} e5 {[%emt 0:00:04]} 2. Nf3 {[%emt 0:03:54]} Nc6 {[%emt 0:00:04]} 3. Bc4 {[%emt 0:00:20]} Bc5 {[%emt 0:00:06]} 4. c3 {[%emt 0:00:16]} Nf6 {[%emt 0:00:04]} 5. d4 {[%emt 0:03:37]} exd4 {[%emt 0:00:07]} 6. e5 {[%emt 0:00:05]} d5 {[%emt 0:00:07]} 7. Be2 {[%emt 0:00:12]} Ne4 {[%emt 0:00:07]} 8. cxd4 {[%emt 0:00:08]} Bb6 {[%emt 0:00:05]} 9. O-O {[%emt 0:00:11]} O-O {[%emt 0:00:05]} 10. Nc3 {[%emt 0:00:15]} Be6 {[%emt 0:00:05]} 11. Be3 {[%emt 0:05:59]} f6 {[%emt 0:00:06]} 12. exf6 {[%emt 0:01:59]} Qxf6 {[%emt 0:00:04]} 13. Na4 {[%emt 0:08:00]} Bg4 {[%emt 0:03:01]} 14. Nxb6 {[%emt 0:02:01]} axb6 {[%emt 0:00:08]} 15. h3 {[%emt 0:20:52]} Bh5 {[%emt 0:02:22]} 16. Qb3 {[%emt 0:01:41]} Rad8 {[%emt 0:07:08]} 17. Rac1 {[%emt 0:04:06]} Kh8 {[%emt 0:04:47]} 18. Qc2 {[%emt 0:08:33]} Rde8 {[%emt 0:08:32]} 19. Rfe1 {[%emt 0:07:38]} Nd6 {[%emt 0:28:18]} 20. Ne5 {[%emt 0:12:40]} Bxe2 {[%emt 0:07:22]} 21. Nd7 {[%emt 0:01:59]} Qf5 {[%emt 0:01:10]} 22. Nxf8 {[%emt 0:00:29]} Bd3 {[%emt 0:03:00]} 23. Qd1 {[%emt 0:03:08]} Rxf8 {[%emt 0:00:45]} 24. Rc3 {[%emt 0:00:06]} Ba6 {[%emt 0:01:43]} 25. Qg4 {[%emt 0:00:10]} Re8 {[%emt 0:04:54]} 26. Rcc1 {[%emt 0:01:38]} Re4 {[%emt 0:04:08]} 27. Qg3 {[%emt 0:04:42]} Qe6 {[%emt 0:02:23]} 28. Kh2 {[%emt 0:00:02]} h6 {[%emt 0:01:18]} 29. b3 {[%emt 0:03:58]} Kh7 {[%emt 0:01:21]} 30. a4 {[%emt 0:00:35]} Qe7 {[%emt 0:05:29]} 31. Qf3 {[%emt 0:02:56]} Nxd4 {[%emt 0:04:03]} 32. Bxd4 {[%emt 0:00:53]} Rxe1 {[%emt 0:00:01]} 33. Rxe1 {[%emt 0:00:07]} Qxe1 {[%emt 0:00:02]} 34. Qf8 {[%emt 0:00:08]} Ne8 {[%emt 0:00:24]} 35. Qf5+ {[%emt 0:00:30]} Kg8 {[%emt 0:00:26]} 36. Qxd5+ {[%emt 0:01:25]} Kh8 {[%emt 0:03:09]} 37. Be3 {[%emt 0:00:58]} Qb4 {[%emt 0:02:16]} 38. Qf7 {[%emt 0:00:06]} Qe4 {[%emt 0:00:34]} 39. Bf4 {[%emt 0:02:30]} Kh7 {[%emt 0:02:10]} 40. f3 {[%emt 0:00:48]} Qg6 {[%emt 0:00:20]} 41. Qe7 {[%emt 0:00:12]} Bf1 {[%emt 0:00:24]} 42. Bg3 {[%emt 0:00:07]} Nd6 {[%emt 0:00:55]} 43. Qxc7 {[%emt 0:00:35]} Nf5 {[%emt 0:00:04]} 0-1

[Event "XIII Mediterranean Championship 2023"]
[Site "Castell-Platja d Aro"]
[Date "2023.11.07"]
[Round "5.2"]
[White "Garriga Cazorla, Pere"]
[Black "Trepat Herranz, Joan"]
[Result "1-0"]
[ECO "D46"]
[WhiteElo "2459"]
[BlackElo "2385"]
[Annotator "RC"]
[PlyCount "105"]
[EventDate "2023.10.26"]
[EventType "swiss"]
[EventCountry "ESP"]
[SourceTitle "playchess.com"]
[Source "ChessBase"]
[SourceQuality "1"]
[TimeControl "5400+30"]

1. d4 {[%emt 0:00:54]} d5 {[%emt 0:00:29]} 2. c4 {[%emt 0:00:07]} c6 {[%emt 0:00:23]} 3. Nf3 {[%emt 0:00:09]} Nf6 {[%emt 0:00:33]} 4. Nc3 {[%emt 0:00:06]} e6 {[%emt 0:00:24]} 5. e3 {[%emt 0:00:23]} Nbd7 {[%emt 0:00:21]} 6. Qc2 {[%emt 0:00:09]} Bd6 {[%emt 0:00:33]} 7. Be2 {[%emt 0:00:07]} dxc4 {[%emt 0:06:59]} 8. Bxc4 {[%emt 0:00:21]} b5 {[%emt 0:05:14]} 9. Be2 {[%emt 0:00:08]} O-O {[%emt 0:06:08]} 10. O-O {[%emt 0:00:12]} a6 {[%emt 0:01:11]} 11. Ng5 {[%emt 0:00:06]} Be7 {[%emt 0:01:21]} 12. e4 {[%emt 0:00:27]} h6 {[%emt 0:00:49]} 13. Nf3 {[%emt 0:06:32]} b4 {[%emt 0:01:15]} 14. Na4 {[%emt 0:01:43]} c5 {[%emt 0:00:26]} 15. e5 {[%emt 0:01:50]} Nd5 {[%emt 0:00:22]} 16. Qe4 {[%emt 0:03:49]} cxd4 {[%emt 0:01:44]} 17. Bxh6 {[%emt 0:34:43]} gxh6 {[%emt 0:01:39]} 18. Bd3 {[%emt 0:00:35]} f5 {[%emt 0:00:12]} 19. exf6 {[%emt 0:00:10]} Rxf6 {[%emt 0:00:13]} 20. Qh7+ {[%emt 0:00:26]} Kf8 {[%emt 0:00:06]} 21. Bg6 {[%emt 0:00:18]} Rxg6 {[%emt 0:35:53]} 22. Qxg6 {[%emt 0:00:09]} Bf6 {[%emt 0:02:59]} 23. Rfe1 {[%emt 0:05:49]} Qe7 {[%emt 0:19:01]} 24. Rad1 {[%emt 0:08:44]} Qg7 {[%emt 0:01:55]} 25. Qxg7+ {[%emt 0:01:17]} Kxg7 {[%emt 0:00:14]} 26. Rxe6 {[%emt 0:00:30]} Nf8 {[%emt 0:05:17]} 27. Rd6 {[%emt 0:00:46]} Nf4 {[%emt 0:01:47]} 28. Nb6 {[%emt 0:01:49]} Rb8 {[%emt 0:01:07]} 29. Nxc8 {[%emt 0:00:27]} Rxc8 {[%emt 0:00:04]} 30. g3 {[%emt 0:00:05]} N4e6 {[%emt 0:02:48]} 31. Rxa6 {[%emt 0:00:03]} Kf7 {[%emt 0:02:43]} 32. Ra7+ {[%emt 0:01:24]} Kg6 {[%emt 0:00:15]} 33. Rb7 {[%emt 0:00:27]} Rc4 {[%emt 0:01:20]} 34. Nd2 {[%emt 0:01:06]} Rc2 {[%emt 0:00:13]} 35. Rxb4 {[%emt 0:00:02]} d3 {[%emt 0:00:18]} 36. Ne4 {[%emt 0:00:47]} Bxb2 {[%emt 0:00:18]} 37. Rxd3 {[%emt 0:00:33]} Bg7 {[%emt 0:01:11]} 38. a4 {[%emt 0:00:19]} Ra2 {[%emt 0:00:11]} 39. Kg2 {[%emt 0:00:21]} Ng5 {[%emt 0:01:18]} 40. Nc5 {[%emt 0:01:57]} Nf7 {[%emt 0:00:42]} 41. Re3 {[%emt 0:02:29]} Kh7 {[%emt 0:00:31]} 42. Re7 {[%emt 0:00:58]} Nd6 {[%emt 0:00:30]} 43. Ne6 {[%emt 0:03:50]} Nxe6 {[%emt 0:00:29]} 44. Rxe6 {[%emt 0:00:05]} Nf5 {[%emt 0:00:27]} 45. Rf4 {[%emt 0:00:07]} Nd4 {[%emt 0:00:20]} 46. Re7 {[%emt 0:00:13]} Nc6 {[%emt 0:00:27]} 47. Rc7 {[%emt 0:01:03]} Ne5 {[%emt 0:00:10]} 48. Re4 {[%emt 0:00:57]} Ng6 {[%emt 0:00:50]} 49. h4 {[%emt 0:00:26]} h5 {[%emt 0:00:20]} 50. Rc5 {[%emt 0:00:36]} Kh6 {[%emt 0:00:25]} 51. Rf5 {[%emt 0:00:51]} Bf8 {[%emt 0:01:03]} 52. Re6 {[%emt 0:01:00]} Be7 {[%emt 0:00:23]} 53. a5 {[%emt 0:00:37]} 1-0

[Event "XIII Mediterranean Championship 2023"]
[Site "Castell-Platja d Aro"]
[Date "2023.11.07"]
[Round "5.3"]
[White "Alexakis, Dimitris"]
[Black "Eugene, Floryan"]
[Result "1-0"]
[ECO "C92"]
[WhiteElo "2458"]
[BlackElo "2426"]
[Annotator "RC"]
[PlyCount "77"]
[EventDate "2023.10.26"]
[EventType "swiss"]
[EventCountry "ESP"]
[SourceTitle "playchess.com"]
[Source "ChessBase"]
[SourceQuality "1"]
[TimeControl "5400+30"]

1. e4 {[%emt 1:31:00]} e5 {[%emt 1:31:00]} 2. Nf3 {[%emt 0:00:30]} Nc6 {[%emt 0:00:30]} 3. Bb5 {[%emt 0:00:30]} a6 {[%emt 0:00:30]} 4. Ba4 {[%emt 0:00:30]} Nf6 {[%emt 0:00:30]} 5. O-O {[%emt 0:00:30]} Be7 {[%emt 0:00:30]} 6. Re1 {[%emt 0:00:30]} b5 {[%emt 0:00:30]} 7. Bb3 {[%emt 0:00:30]} d6 {[%emt 0:00:30]} 8. c3 {[%emt 0:00:30]} O-O {[%emt 0:00:30]} 9. h3 {[%emt 0:00:30]} Bb7 {[%emt 0:00:30]} 10. d4 {[%emt 0:00:30]} Re8 {[%emt 0:00:30]} 11. Nbd2 {[%emt 0:00:30]} Bf8 {[%emt 0:00:30]} 12. a4 {[%emt 0:00:30]} exd4 {[%emt 0:00:30]} 13. cxd4 {[%emt 0:00:30]} Qd7 {[%emt 0:00:30]} 14. Ng5 {[%emt 0:00:30]} Nd8 {[%emt 0:00:30]} 15. e5 {[%emt 0:00:30]} Nd5 {[%emt 0:00:30]} 16. Ndf3 {[%emt 0:00:30]} h6 {[%emt 0:00:30]} 17. Ne4 {[%emt 0:00:30]} bxa4 {[%emt 0:00:30]} 18. Bxa4 {[%emt 0:00:30]} Bc6 {[%emt 0:00:30]} 19. Bb3 {[%emt 0:00:30]} Nb4 {[%emt 0:00:30]} 20. Nc3 {[%emt 0:00:30]} d5 {[%emt 0:00:30]} 21. Re3 {[%emt 0:00:30]} Bb7 {[%emt 0:00:30]} 22. Ba4 {[%emt 0:00:30]} Bc6 {[%emt 0:00:30]} 23. Bb3 {[%emt 0:00:30]} Bb7 {[%emt 0:00:30]} 24. Nh2 {[%emt 0:00:30]} c5 {[%emt 0:00:30]} 25. Rg3 {[%emt 0:00:30]} Kh8 {[%emt 0:00:30]} 26. Na4 {[%emt 0:00:30]} Qf5 {[%emt 0:00:30]} 27. Nxc5 {[%emt 0:00:30]} Bxc5 {[%emt 0:00:30]} 28. dxc5 {[%emt 0:00:30]} Ne6 {[%emt 0:00:30]} 29. Ng4 {[%emt 0:00:30]} h5 {[%emt 0:00:30]} 30. Qd2 {[%emt 0:00:30]} a5 {[%emt 0:00:30]} 31. Nh6 {[%emt 0:00:30]} gxh6 {[%emt 0:00:30]} 32. Qxh6+ {[%emt 0:00:30]} Qh7 {[%emt 0:00:30]} 33. Qf6+ {[%emt 0:00:30]} Ng7 {[%emt 0:00:30]} 34. Bh6 {[%emt 0:00:30]} Rg8 {[%emt 0:00:30]} 35. e6 {[%emt 0:00:30]} Ra6 {[%emt 0:00:30]} 36. Re1 {[%emt 0:00:30]} Bc8 {[%emt 0:00:30]} 37. Bxg7+ {[%emt 0:00:30]} Rxg7 {[%emt 0:00:30]} 38. Qd8+ {[%emt 0:00:30]} Qg8 {[%emt 0:00:30]} 39. exf7 {[%emt 0:00:30]} 1-0

[Event "XIII Mediterranean Championship 2023"]
[Site "Castell-Platja d Aro"]
[Date "2023.11.07"]
[Round "5.4"]
[White "Asis Gargatagli, Hipolito"]
[Black "Masague Artero, Guerau"]
[Result "1-0"]
[ECO "B51"]
[WhiteElo "2511"]
[BlackElo "2305"]
[Annotator "RC"]
[PlyCount "69"]
[EventDate "2023.10.26"]
[EventType "swiss"]
[EventCountry "ESP"]
[SourceTitle "playchess.com"]
[Source "ChessBase"]
[SourceQuality "1"]
[TimeControl "5400+30"]

1. e4 {[%emt 0:00:03]} c5 {[%emt 0:00:08]} 2. Nf3 {[%emt 0:00:14]} Nc6 {[%emt 0:00:06]} 3. Bb5 {[%emt 0:00:22]} d6 {[%emt 0:00:05]} 4. O-O {[%emt 0:00:35]} Bd7 {[%emt 0:00:07]} 5. Re1 {[%emt 0:00:23]} Nf6 {[%emt 0:00:14]} 6. h3 {[%emt 0:00:54]} a6 {[%emt 0:01:26]} 7. Bf1 {[%emt 0:00:09]} g5 {[%emt 0:06:34]} 8. d4 {[%emt 0:01:00]} g4 {[%emt 0:02:26]} 9. d5 {[%emt 0:00:36]} Ne5 {[%emt 0:16:09]} 10. Nxe5 {[%emt 0:09:08]} dxe5 {[%emt 0:00:07]} 11. hxg4 {[%emt 0:02:29]} Nxg4 {[%emt 0:01:00]} 12. f3 {[%emt 0:11:38]} Nf6 {[%emt 0:00:11]} 13. Nd2 {[%emt 0:01:27]} Qc7 {[%emt 0:13:10]} 14. a4 {[%emt 0:03:29]} Bh6 {[%emt 0:01:04]} 15. Nc4 {[%emt 0:03:01]} Bxc1 {[%emt 0:01:04]} 16. Qxc1 {[%emt 0:00:39]} Rg8 {[%emt 0:01:00]} 17. Qh6 {[%emt 0:00:41]} Rg6 {[%emt 0:02:34]} 18. Qh2 {[%emt 0:06:13]} Rg5 {[%emt 0:00:48]} 19. Red1 {[%emt 0:28:18]} O-O-O {[%emt 0:12:16]} 20. d6 {[%emt 0:05:21]} exd6 {[%emt 0:00:14]} 21. Qh4 {[%emt 0:01:13]} Rg6 {[%emt 0:06:57]} 22. Nxd6+ {[%emt 0:11:38]} Kb8 {[%emt 0:00:17]} 23. Nxf7 {[%emt 0:00:23]} Rf8 {[%emt 0:07:19]} 24. Nd6 {[%emt 0:00:33]} Be6 {[%emt 0:02:58]} 25. Qh2 {[%emt 0:01:03]} c4 {[%emt 0:05:12]} 26. Qxe5 {[%emt 0:02:14]} Nd7 {[%emt 0:00:23]} 27. Qc3 {[%emt 0:06:38]} Qc5+ {[%emt 0:00:35]} 28. Qd4 {[%emt 0:00:05]} Qh5 {[%emt 0:02:03]} 29. Nf5 {[%emt 0:00:55]} Ka8 {[%emt 0:02:43]} 30. Ra3 {[%emt 0:00:21]} Qg5 {[%emt 0:07:24]} 31. Qe3 {[%emt 0:01:05]} Qh5 {[%emt 0:01:57]} 32. Qf4 {[%emt 0:01:17]} Bxf5 {[%emt 0:01:21]} 33. exf5 {[%emt 0:00:04]} Nb6 {[%emt 0:02:38]} 34. Re3 {[%emt 0:01:45]} Qxf5 {[%emt 0:01:31]} 35. Rd8+ {[%emt 0:00:07]} 1-0

[Event "XIII Mediterranean Championship 2023"]
[Site "Castell-Platja d Aro"]
[Date "2023.11.07"]
[Round "5.5"]
[White "Lazaro Pujol, Abel"]
[Black "Gines Esteo, Pedro Antonio"]
[Result "1/2-1/2"]
[ECO "B19"]
[WhiteElo "2289"]
[BlackElo "2490"]
[Annotator "RC"]
[PlyCount "165"]
[EventDate "2023.10.26"]
[EventType "swiss"]
[EventCountry "ESP"]
[SourceTitle "playchess.com"]
[Source "ChessBase"]
[SourceQuality "1"]
[TimeControl "5400+30"]

1. e4 {[%emt 0:02:43]} c6 {[%emt 0:00:14]} 2. d4 {[%emt 0:00:15]} d5 {[%emt 0:00:04]} 3. Nc3 {[%emt 0:00:18]} dxe4 {[%emt 0:00:06]} 4. Nxe4 {[%emt 0:00:07]} Bf5 {[%emt 0:00:18]} 5. Ng3 {[%emt 0:00:23]} Bg6 {[%emt 0:00:03]} 6. h4 {[%emt 0:00:47]} h6 {[%emt 0:00:03]} 7. Nf3 {[%emt 0:00:14]} Nd7 {[%emt 0:01:06]} 8. h5 {[%emt 0:00:20]} Bh7 {[%emt 0:00:01]} 9. Bd3 {[%emt 0:00:24]} Bxd3 {[%emt 0:00:04]} 10. Qxd3 {[%emt 0:00:06]} e6 {[%emt 0:00:05]} 11. Bd2 {[%emt 0:00:25]} Ngf6 {[%emt 0:00:07]} 12. O-O-O {[%emt 0:00:40]} Be7 {[%emt 0:02:05]} 13. Kb1 {[%emt 0:00:46]} Rc8 {[%emt 0:01:09]} 14. Ne4 {[%emt 0:05:03]} c5 {[%emt 0:01:13]} 15. dxc5 {[%emt 0:05:45]} O-O {[%emt 0:01:27]} 16. Be3 {[%emt 0:08:37]} Nxe4 {[%emt 0:23:00]} 17. Qxe4 {[%emt 0:29:58]} Qc7 {[%emt 0:00:33]} 18. c3 {[%emt 0:06:46]} Nf6 {[%emt 0:02:14]} 19. Qc2 {[%emt 0:02:57]} Bxc5 {[%emt 0:03:33]} 20. Bd4 {[%emt 0:05:07]} Qe7 {[%emt 0:10:38]} 21. Qe2 {[%emt 0:06:50]} Rfd8 {[%emt 0:06:09]} 22. Rd2 {[%emt 0:06:21]} Bxd4 {[%emt 0:05:23]} 23. Nxd4 {[%emt 0:01:04]} Rd5 {[%emt 0:01:06]} 24. g4 {[%emt 0:01:05]} Qd6 {[%emt 0:04:42]} 25. Rhd1 {[%emt 0:02:00]} Qb6 {[%emt 0:01:43]} 26. c4 {[%emt 0:03:05]} Rdc5 {[%emt 0:01:15]} 27. Nb5 {[%emt 0:00:56]} R5c6 {[%emt 0:09:02]} 28. Nd6 {[%emt 0:03:31]} Rd8 {[%emt 0:04:57]} 29. Ne4 {[%emt 0:01:08]} Rxd2 {[%emt 0:00:21]} 30. Nxf6+ {[%emt 0:01:01]} gxf6 {[%emt 0:00:03]} 31. Qxd2 {[%emt 0:01:41]} Kg7 {[%emt 0:00:02]} 32. Qd4 {[%emt 0:01:41]} Qxd4 {[%emt 0:09:16]} 33. Rxd4 {[%emt 0:00:02]} e5 {[%emt 0:00:07]} 34. Rd7 {[%emt 0:03:51]} Rxc4 {[%emt 0:00:02]} 35. Rxb7 {[%emt 0:00:21]} Rxg4 {[%emt 0:11:20]} 36. Rxa7 {[%emt 0:00:50]} Rf4 {[%emt 0:00:06]} 37. a4 {[%emt 0:00:22]} Rxf2 {[%emt 0:00:01]} 38. a5 {[%emt 0:00:13]} f5 {[%emt 0:04:23]} 39. a6 {[%emt 0:00:31]} Rf1+ {[%emt 0:01:26]} 40. Ka2 {[%emt 0:00:02]} Rd1 {[%emt 0:00:09]} 41. Rc7 {[%emt 0:01:35]} Rd6 {[%emt 0:00:26]} 42. a7 {[%emt 0:00:07]} Ra6+ {[%emt 0:00:03]} 43. Kb1 {[%emt 0:00:28]} f4 {[%emt 0:00:01]} 44. Kc2 {[%emt 0:00:40]} f3 {[%emt 0:01:34]} 45. Kd3 {[%emt 0:00:49]} Ra2 {[%emt 0:00:11]} 46. Ke3 {[%emt 0:00:53]} e4 {[%emt 0:01:05]} 47. Rc4 {[%emt 0:00:40]} f2 {[%emt 0:00:32]} 48. Kxf2 {[%emt 0:00:27]} Rxa7 {[%emt 0:00:30]} 49. Rxe4 {[%emt 0:00:11]} Ra2 {[%emt 0:00:30]} 50. Rb4 {[%emt 0:00:26]} Ra5 {[%emt 0:00:08]} 51. Rh4 {[%emt 0:00:21]} f5 {[%emt 0:00:33]} 52. Rh3 {[%emt 0:00:33]} Rb5 {[%emt 0:00:48]} 53. Rg3+ {[%emt 0:00:02]} Kf6 {[%emt 0:00:16]} 54. Rg6+ {[%emt 0:01:01]} Ke5 {[%emt 0:00:01]} 55. Rxh6 {[%emt 0:00:09]} Rxb2+ {[%emt 0:00:08]} 56. Kf3 {[%emt 0:00:11]} Rb3+ {[%emt 0:00:00]} 57. Kf2 {[%emt 0:00:07]} Kf4 {[%emt 0:00:05]} 58. Ra6 {[%emt 0:00:22]} Rb2+ {[%emt 0:00:07]} 59. Kf1 {[%emt 0:00:01]} Kf3 {[%emt 0:02:03]} 60. Ra3+ {[%emt 0:00:05]} Kg4 {[%emt 0:00:04]} 61. h6 {[%emt 0:00:15]} Rh2 {[%emt 0:00:03]} 62. Rb3 {[%emt 0:00:14]} Rxh6 {[%emt 0:00:11]} 63. Ra3 {[%emt 0:00:04]} Rd6 {[%emt 0:00:30]} 64. Rb3 {[%emt 0:00:06]} Rd2 {[%emt 0:00:30]} 65. Ra3 {[%emt 0:00:04]} Kf4 {[%emt 0:00:15]} 66. Rb3 {[%emt 0:00:08]} Ke4 {[%emt 0:00:08]} 67. Ra3 {[%emt 0:00:10]} Rh2 {[%emt 0:00:01]} 68. Rb3 {[%emt 0:00:12]} Ra2 {[%emt 0:00:19]} 69. Rc3 {[%emt 0:00:07]} Ra5 {[%emt 0:00:27]} 70. Rb3 {[%emt 0:00:10]} Re5 {[%emt 0:00:00]} 71. Kf2 {[%emt 0:00:15]} Kf4 {[%emt 0:00:12]} 72. Rb4+ {[%emt 0:00:06]} Kg5 {[%emt 0:00:14]} 73. Ra4 {[%emt 0:00:06]} Rb5 {[%emt 0:00:06]} 74. Rc4 {[%emt 0:00:05]} f4 {[%emt 0:00:21]} 75. Rc8 {[%emt 0:00:09]} Rb2+ {[%emt 0:00:24]} 76. Kf3 {[%emt 0:00:24]} Rb3+ {[%emt 0:00:34]} 77. Kf2 {[%emt 0:00:05]} Rb5 {[%emt 0:00:12]} 78. Kf3 {[%emt 0:00:11]} Ra5 {[%emt 0:00:18]} 79. Rg8+ {[%emt 0:00:08]} Kf5 {[%emt 0:00:01]} 80. Rf8+ {[%emt 0:00:08]} Kg5 {[%emt 0:00:06]} 81. Rg8+ {[%emt 0:00:06]} Kf5 {[%emt 0:00:09]} 82. Rf8+ {[%emt 0:00:06]} Ke5 {[%emt 0:00:18]} 83. Re8+ {[%emt 0:00:05]} 1/2-1/2

[Event "XIII Mediterranean Championship 2023"]
[Site "Castell-Platja d Aro"]
[Date "2023.11.07"]
[Round "5.6"]
[White "Garcia Jimenez, Francisco Javier"]
[Black "Narciso Dublan, Marc"]
[Result "1/2-1/2"]
[ECO "B15"]
[WhiteElo "2249"]
[BlackElo "2401"]
[Annotator "RC"]
[PlyCount "86"]
[EventDate "2023.10.26"]
[EventType "swiss"]
[EventCountry "ESP"]
[SourceTitle "playchess.com"]
[Source "ChessBase"]
[SourceQuality "1"]
[TimeControl "5400+30"]

1. e4 {[%emt 0:11:35]} c6 {[%emt 0:00:30]} 2. d4 {[%emt 0:10:27]} d5 {[%emt 0:00:11]} 3. Nc3 {[%emt 0:00:04]} dxe4 {[%emt 0:00:19]} 4. Nxe4 {[%emt 0:00:04]} Nf6 {[%emt 0:00:56]} 5. Nxf6+ {[%emt 0:00:27]} exf6 {[%emt 0:00:13]} 6. Bf4 {[%emt 0:01:46]} Bd6 {[%emt 0:11:19]} 7. Bxd6 {[%emt 0:06:15]} Qxd6 {[%emt 0:00:07]} 8. c3 {[%emt 0:00:02]} O-O {[%emt 0:01:46]} 9. Bd3 {[%emt 0:00:06]} Re8+ {[%emt 0:01:54]} 10. Ne2 {[%emt 0:00:05]} Nd7 {[%emt 0:00:10]} 11. O-O {[%emt 0:00:30]} g6 {[%emt 0:03:29]} 12. Re1 {[%emt 0:07:49]} f5 {[%emt 0:00:44]} 13. Qd2 {[%emt 0:03:06]} Nf6 {[%emt 1:15:22]} 14. Qf4 {[%emt 0:02:44]} Qxf4 {[%emt 0:00:00]} 15. Nxf4 {[%emt 0:00:03]} Bd7 {[%emt 0:00:00]} 16. h4 {[%emt 0:04:22]} Kf8 {[%emt 0:00:00]} 17. f3 {[%emt 0:00:48]} Rac8 {[%emt 0:00:00]} 18. Kf2 {[%emt 0:00:42]} a5 {[%emt 0:00:00]} 19. Rxe8+ {[%emt 0:01:58]} Nxe8 {[%emt 0:00:00]} 20. Re1 {[%emt 0:00:14]} Nc7 {[%emt 0:00:00]} 21. Re5 {[%emt 0:01:34]} b6 {[%emt 0:00:00]} 22. a3 {[%emt 0:01:34]} Ne6 {[%emt 0:00:00]} 23. Kg3 {[%emt 0:02:55]} Ng7 {[%emt 0:00:00]} 24. Bc4 {[%emt 0:01:34]} h6 {[%emt 0:00:00]} 25. Nd3 {[%emt 0:07:01]} Nh5+ {[%emt 0:00:00]} 26. Kf2 {[%emt 0:01:30]} Nf6 {[%emt 0:00:00]} 27. Re1 {[%emt 0:00:50]} Be8 {[%emt 0:00:00]} 28. Ba2 {[%emt 0:05:32]} Rd8 {[%emt 0:00:00]} 29. Ne5 {[%emt 0:01:00]} c5 {[%emt 0:00:00]} 30. d5 {[%emt 0:05:48]} Bb5 {[%emt 0:00:00]} 31. c4 {[%emt 0:02:24]} Be8 {[%emt 0:00:00]} 32. b3 {[%emt 0:00:54]} Ng8 {[%emt 0:00:52]} 33. a4 {[%emt 0:00:22]} Ne7 {[%emt 0:01:42]} 34. Bb1 {[%emt 0:00:20]} Nc8 {[%emt 0:02:04]} 35. h5 {[%emt 0:05:04]} Ne7 {[%emt 0:02:32]} 36. hxg6 {[%emt 0:00:59]} fxg6 {[%emt 0:00:02]} 37. Nd3 {[%emt 0:00:05]} Bf7 {[%emt 0:00:23]} 38. Nf4 {[%emt 0:05:44]} Rd6 {[%emt 0:00:12]} 39. Ne2 {[%emt 0:01:47]} Be8 {[%emt 0:02:12]} 40. Nc3 {[%emt 0:00:40]} Rf6 {[%emt 0:01:27]} 41. Bd3 {[%emt 0:01:45]} Nc8 {[%emt 0:00:14]} 42. f4 {[%emt 0:01:40]} Nd6 {[%emt 0:00:16]} 43. Nb1 {[%emt 0:00:33]} g5 {[%emt 0:00:44]} 1/2-1/2

[Event "XIII Mediterranean Championship 2023"]
[Site "Castell-Platja d Aro"]
[Date "2023.11.07"]
[Round "5.7"]
[White "Alsina Leal, Daniel"]
[Black "Hernando Rodrigo, Julio Antonio"]
[Result "0-1"]
[ECO "C17"]
[WhiteElo "2531"]
[BlackElo "2202"]
[Annotator "RC"]
[PlyCount "126"]
[EventDate "2023.10.26"]
[EventType "swiss"]
[EventCountry "ESP"]
[SourceTitle "playchess.com"]
[Source "ChessBase"]
[SourceQuality "1"]
[TimeControl "5400+30"]

1. e4 {[%emt 0:00:02]} e6 {[%emt 0:09:37]} 2. d4 {[%emt 0:01:21]} d5 {[%emt 0:00:11]} 3. Nc3 {[%emt 0:00:11]} Bb4 {[%emt 0:00:13]} 4. e5 {[%emt 0:00:09]} c5 {[%emt 0:00:12]} 5. Bd2 {[%emt 0:00:11]} Ne7 {[%emt 0:00:27]} 6. a3 {[%emt 0:00:08]} Bxc3 {[%emt 0:01:36]} 7. Bxc3 {[%emt 0:00:05]} b6 {[%emt 0:02:10]} 8. h4 {[%emt 0:00:19]} Ba6 {[%emt 0:01:00]} 9. Bxa6 {[%emt 0:00:11]} Nxa6 {[%emt 0:00:06]} 10. Qe2 {[%emt 0:00:09]} cxd4 {[%emt 0:02:44]} 11. Bxd4 {[%emt 0:00:15]} Nc5 {[%emt 0:02:47]} 12. O-O-O {[%emt 0:00:26]} Qc8 {[%emt 0:06:18]} 13. Kb1 {[%emt 0:27:58]} Qa6 {[%emt 0:04:02]} 14. Qxa6 {[%emt 0:11:44]} Nxa6 {[%emt 0:00:06]} 15. h5 {[%emt 0:01:34]} h6 {[%emt 0:03:57]} 16. Ne2 {[%emt 0:16:42]} Rc8 {[%emt 0:00:44]} 17. g4 {[%emt 0:02:29]} Nc5 {[%emt 0:04:35]} 18. Ng3 {[%emt 0:05:04]} O-O {[%emt 0:58:45]} 19. Rhe1 {[%emt 0:01:10]} g5 {[%emt 0:00:00]} 20. hxg6 {[%emt 0:09:30]} fxg6 {[%emt 0:00:00]} 21. Rh1 {[%emt 0:00:29]} Rf4 {[%emt 0:00:00]} 22. Rxh6 {[%emt 0:01:30]} Rxg4 {[%emt 0:00:00]} 23. Rdh1 {[%emt 0:04:40]} Rf8 {[%emt 0:00:00]} 24. c3 {[%emt 0:04:18]} Kf7 {[%emt 0:00:00]} 25. Rh7+ {[%emt 0:06:52]} Ke8 {[%emt 0:00:00]} 26. Rg7 {[%emt 0:00:49]} Rgf4 {[%emt 0:00:00]} 27. Be3 {[%emt 0:00:50]} R4f7 {[%emt 0:00:00]} 28. Rxf7 {[%emt 0:00:33]} Rxf7 {[%emt 0:00:00]} 29. Ne2 {[%emt 0:00:19]} Nd3 {[%emt 0:00:00]} 30. f4 {[%emt 0:03:20]} g5 {[%emt 0:00:00]} 31. fxg5 {[%emt 0:00:39]} Nxe5 {[%emt 0:00:00]} 32. Bd4 {[%emt 0:01:38]} N5g6 {[%emt 0:00:00]} 33. Bf6 {[%emt 0:00:33]} Ng8 {[%emt 0:00:00]} 34. Bd4 {[%emt 0:00:12]} e5 {[%emt 0:00:00]} 35. Be3 {[%emt 0:00:06]} Kd7 {[%emt 0:00:00]} 36. Kc2 {[%emt 0:00:24]} Ke6 {[%emt 0:00:00]} 37. a4 {[%emt 0:00:21]} N8e7 {[%emt 0:00:00]} 38. a5 {[%emt 0:00:35]} Nf5 {[%emt 0:00:00]} 39. Bd2 {[%emt 0:00:30]} b5 {[%emt 0:00:00]} 40. a6 {[%emt 0:00:18]} Rc7 {[%emt 0:00:00]} 41. Kb3 {[%emt 0:00:06]} Rc6 {[%emt 0:00:00]} 42. Ra1 {[%emt 0:00:34]} Rc4 {[%emt 0:00:00]} 43. Ra5 {[%emt 0:00:56]} Nd6 {[%emt 0:00:00]} 44. Be3 {[%emt 0:01:27]} Ne7 {[%emt 0:00:00]} 45. Bg1 {[%emt 0:00:50]} Re4 {[%emt 0:00:00]} 46. Ng3 {[%emt 0:00:21]} Rg4 {[%emt 0:00:00]} 47. Bf2 {[%emt 0:00:06]} Nc6 {[%emt 0:03:42]} 48. Ra1 {[%emt 0:00:06]} Rxg5 {[%emt 0:01:44]} 49. Rh1 {[%emt 0:00:02]} Nf5 {[%emt 0:00:39]} 50. Nxf5 {[%emt 0:00:27]} Rxf5 {[%emt 0:00:15]} 51. Bc5 {[%emt 0:00:11]} d4 {[%emt 0:01:16]} 52. Rh7 {[%emt 0:01:34]} Rf7 {[%emt 0:01:05]} 53. Rxf7 {[%emt 0:00:38]} Kxf7 {[%emt 0:00:03]} 54. c4 {[%emt 0:00:45]} b4 {[%emt 0:02:24]} 55. Bxb4 {[%emt 0:00:45]} Nxb4 {[%emt 0:01:55]} 56. Kxb4 {[%emt 0:00:01]} Ke6 {[%emt 0:01:03]} 57. Kb3 {[%emt 0:00:17]} Kd6 {[%emt 0:00:07]} 58. Kc2 {[%emt 0:01:10]} Kc5 {[%emt 0:00:06]} 59. Kd3 {[%emt 0:00:12]} Kb6 {[%emt 0:00:14]} 60. Ke4 {[%emt 0:00:31]} Kxa6 {[%emt 0:00:08]} 61. b4 {[%emt 0:00:51]} Kb6 {[%emt 0:00:09]} 62. Kd3 {[%emt 0:00:32]} a5 {[%emt 0:00:21]} 63. b5 {[%emt 0:00:33]} Kc5 {[%emt 0:00:08]} 0-1